bitfinex/quotes_BTCUSD_20250928
["timestamp","ask_amount","ask_price","bid_price","bid_amount"]
[1759100762145,0.0297942,112380.0,112370.0,0.5899286]
[1759100762380,0.0297942,112380.0,112370.0,0.5896486]
[1759100762589,0.0244342,112380.0,112370.0,0.5916786]
[1759100764689,0.0265842,112380.0,112370.0,0.4991186]
[1759100765018,0.0244342,112380.0,112370.0,0.5918386]
[1759100765211,0.0265842,112380.0,112370.0,0.5918386]
[1759100767170,0.0244342,112380.0,112370.0,0.5949086]
[1759100774252,0.0244342,112380.0,112370.0,0.9626386]
[1759100776548,0.0244342,112380.0,112370.0,1.2320386]
[1759100776755,0.0265942,112380.0,112370.0,0.4812786]
[1759100776965,0.0244342,112380.0,112370.0,0.4812786]
[1759100777166,0.0244342,112380.0,112370.0,1.2320386]
[1759100777495,0.0244342,112380.0,112370.0,1.2351086]
[1759100777696,0.0265942,112380.0,112370.0,1.2320386]
[1759100777916,0.0244342,112380.0,112370.0,1.2320386]
[1759100782983,0.0244342,112380.0,112370.0,1.2319186]
[1759100783112,0.0244342,112380.0,112370.0,0.4812786]
[1759100783311,0.0293842,112380.0,112370.0,0.5719686]
[1759100783532,0.0293842,112380.0,112370.0,0.8589686]
[1759100783747,0.0293842,112380.0,112370.0,0.7662886]
[1759100783999,0.0293842,112380.0,112370.0,0.8590086]
[1759100785436,0.0264242,112380.0,112370.0,0.8610886]
[1759100785639,0.0244342,112380.0,112370.0,0.8610886]
[1759100785833,0.0264242,112380.0,112370.0,0.8610886]
[1759100786280,0.0264242,112380.0,112370.0,0.7686086]
[1759100786519,0.0293842,112380.0,112370.0,0.8613286]
[1759100786712,0.0264242,112380.0,112370.0,0.8613286]
[1759100787046,0.0293842,112380.0,112370.0,0.8613286]
[1759100788171,0.0293842,112380.0,112370.0,0.5919286]
[1759100788611,0.0293842,112380.0,112370.0,0.5898486]
[1759100789424,0.0293842,112380.0,112370.0,0.5919286]
[1759100789841,0.0293842,112380.0,112370.0,0.5898486]
[1759100790026,0.0293842,112380.0,112370.0,0.5919286]
[1759100790249,0.0293842,112380.0,112370.0,0.2098486]
[1759100790605,0.0293842,112380.0,112370.0,0.5897286]
[1759100791772,0.0293842,112380.0,112370.0,0.5918086]
[1759100791949,0.0293842,112380.0,112370.0,0.5897286]
[1759100793140,0.0293842,112380.0,112370.0,0.5895286]
[1759100794569,0.0293842,112380.0,112370.0,0.5916086]
[1759100795487,0.0293842,112380.0,112370.0,0.5914086]
[1759100795692,0.0293842,112380.0,112370.0,0.4986886]
[1759100795917,0.0244342,112380.0,112370.0,0.5914086]
[1759100796119,0.0244342,112380.0,112370.0,0.5944786]
[1759100799276,0.0244342,112380.0,112370.0,0.5914086]
[1759100799730,0.0244342,112380.0,112370.0,0.5944786]
[1759100802208,0.0244342,112380.0,112370.0,0.5904786]
[1759100802667,0.0244342,112380.0,112370.0,0.5944786]
[1759100803097,0.0244342,112380.0,112370.0,0.5994786]
[1759100808313,0.0244342,112380.0,112370.0,0.2199986]
[1759100808525,0.0244342,112380.0,112370.0,0.5991586]
[1759100809896,0.0244342,112380.0,112370.0,0.6259284]
[1759100812033,0.0244342,112380.0,112370.0,0.6560803]
[1759100812402,0.0244342,112380.0,112370.0,0.2769203]
[1759100812591,0.0244342,112380.0,112370.0,1.0269603]
[1759100817945,0.0244342,112380.0,112370.0,0.5463203]
[1759100818146,0.0244342,112380.0,112370.0,1.2963203]
[1759100819817,0.0244342,112380.0,112370.0,0.5463203]
[1759100820018,0.0244342,112380.0,112370.0,1.2963203]
[1759100821403,0.0244342,112380.0,112370.0,0.5463203]
[1759100821592,0.0244342,112380.0,112370.0,1.2963203]
[1759100824621,0.0244342,112380.0,112370.0,0.5463203]
[1759100824755,0.0244342,112380.0,112370.0,1.2932503]
[1759100826531,0.0244342,112380.0,112370.0,0.8296503]
[1759100826713,0.0244342,112380.0,112370.0,1.2932503]
[1759100827325,0.0244342,112380.0,112370.0,1.2962703]
[1759100833488,0.0244342,112380.0,112370.0,1.0268703]
[1759100834497,0.00312,112410.0,112390.0,0.17795177]
[1759100834699,0.00026639,112420.0,112410.0,0.17792011]
[1759100834901,0.00540639,112420.0,112410.0,0.17792011]
[1759100835263,0.00540639,112420.0,112410.0,0.57963011]
[1759100835465,0.00540639,112420.0,112410.0,0.20059011]
[1759100835650,0.02256413,112420.0,112410.0,0.20059011]
[1759100835848,0.02256413,112420.0,112410.0,0.58009527]
[1759100835999,0.02256413,112420.0,112410.0,0.20105527]
[1759100836195,0.02256413,112420.0,112410.0,0.58009527]
[1759100836640,0.02256413,112420.0,112410.0,0.20105527]
[1759100836802,0.02256413,112420.0,112410.0,0.58005527]
[1759100837198,0.02256413,112420.0,112410.0,0.48737527]
[1759100837414,0.02256413,112420.0,112410.0,0.5141371]
[1759100837617,0.02256413,112420.0,112410.0,0.20105527]
[1759100837818,0.02256413,112420.0,112410.0,0.58005527]
[1759100837999,0.02256413,112420.0,112410.0,0.58105527]
[1759100839012,0.02256413,112420.0,112410.0,0.20205527]
[1759100839262,0.02256413,112420.0,112410.0,0.58101527]
[1759100839913,0.02246413,112420.0,112410.0,0.58101527]
[1759100840123,0.02246413,112420.0,112410.0,0.58306527]
[1759100840784,0.02246413,112420.0,112410.0,0.58101527]
[1759100842063,0.02246413,112420.0,112410.0,0.20205527]
[1759100842271,0.02246413,112420.0,112410.0,0.58101527]
[1759100844321,0.01934413,112420.0,112410.0,0.58302527]
[1759100844729,0.02233413,112420.0,112410.0,0.58302527]
[1759100845339,0.01939413,112420.0,112410.0,0.58302527]
[1759100845560,0.02238413,112420.0,112410.0,0.58302527]
[1759100846290,0.01732413,112420.0,112410.0,0.58609527]
[1759100846501,0.01632413,112420.0,112410.0,0.58609527]
[1759100846660,0.03655,112430.0,112420.0,0.17790428]
[1759100846862,0.0322366,112430.0,112420.0,0.17991428]
[1759100847068,0.0151,112430.0,112420.0,0.20302428]
[1759100847275,0.01004,112430.0,112420.0,0.20302428]
[1759100847501,0.01004,112430.0,112420.0,0.20609428]
[1759100847730,0.01004,112430.0,112420.0,0.23285325]
[1759100848176,0.01004,112430.0,112420.0,0.22978325]
[1759100848389,0.01004,112430.0,112420.0,0.23385325]
[1759100849162,0.01004,112430.0,112420.0,0.26400515]
[1759100849363,0.01004,112430.0,112420.0,0.26700515]
[1759100849575,0.01004,112430.0,112420.0,0.92400515]
[1759100849752,0.01004,112430.0,112420.0,0.26600515]
[1759100849959,0.01004,112430.0,112420.0,1.01568515]
[1759100850163,0.01004,112430.0,112420.0,0.55520515]
[1759100850376,0.01004,112430.0,112420.0,1.01868515]
[1759100852226,0.00904,112430.0,112420.0,1.01868515]
[1759100853291,0.00904,112430.0,112420.0,1.28808515]
[1759100854210,0.00904,112430.0,112420.0,1.35451822]
[1759100854613,0.00904,112430.0,112420.0,1.69451822]
[1759100855019,0.00904,112430.0,112420.0,1.71166985]
[1759100855218,0.00904,112430.0,112420.0,0.96198985]
[1759100855444,0.00904,112430.0,112420.0,1.69443822]
[1759100857760,0.00904,112430.0,112420.0,0.94483822]
[1759100857962,0.00904,112430.0,112420.0,1.69439822]
[1759100858201,0.00904,112430.0,112420.0,0.94483822]
[1759100858408,0.00904,112430.0,112420.0,1.69439822]
[1759100858842,0.00904,112430.0,112420.0,0.94483822]
[1759100859050,0.00904,112430.0,112420.0,1.69439822]
[1759100859282,0.00904,112430.0,112420.0,0.94483822]
[1759100859476,0.00904,112430.0,112420.0,1.69439822]
[1759100859672,0.00904,112430.0,112420.0,0.94483822]
[1759100859876,0.00804,112430.0,112420.0,1.69435822]
[1759100860941,0.00804,112430.0,112420.0,1.69431822]
[1759100862012,0.00804,112430.0,112420.0,0.94483822]
[1759100862394,0.00804,112430.0,112420.0,1.69431822]
[1759100862597,0.00804,112430.0,112420.0,0.94483822]
[1759100862796,0.00804,112430.0,112420.0,1.69431822]
[1759100863100,0.00804,112430.0,112420.0,1.35431822]
[1759100863730,0.00804,112430.0,112420.0,0.60483822]
[1759100864043,0.00804,112430.0,112420.0,1.35431822]
[1759100864191,0.01011,112430.0,112420.0,0.60176822]
[1759100864393,0.0131,112430.0,112420.0,1.06315822]
[1759100864642,0.0131,112430.0,112420.0,1.34919822]
[1759100864786,0.0131,112430.0,112420.0,0.59975822]
[1759100865007,0.0131,112430.0,112420.0,0.12179]
[1759100865217,0.0131,112430.0,112420.0,0.58573428]
[1759100865437,0.03985909,112430.0,112420.0,0.20701428]
[1759100865642,0.03985909,112430.0,112420.0,0.58573428]
[1759100865850,0.03985909,112430.0,112420.0,0.57973428]
[1759100866272,0.03985909,112430.0,112420.0,0.58073428]
[1759100866571,0.03985909,112430.0,112420.0,0.58173428]
[1759100867439,0.03985909,112430.0,112420.0,0.20301428]
[1759100867728,0.03985909,112430.0,112420.0,0.58173428]
[1759100869860,0.0131,112430.0,112420.0,0.58173428]
[1759100871236,0.0131,112430.0,112420.0,0.48905428]
[1759100871440,0.0131,112430.0,112420.0,0.58173428]
[1759100875396,0.00804,112430.0,112420.0,0.61703618]
[1759100879744,0.00804,112430.0,112420.0,0.88643618]
[1759100880191,0.00804,112430.0,112420.0,0.95286925]
[1759100880822,0.00804,112430.0,112420.0,0.95186925]
[1759100881003,0.00804,112430.0,112420.0,1.29286925]
[1759100881234,0.00704,112430.0,112420.0,1.29286925]
[1759100881689,0.00704,112430.0,112420.0,1.29186925]
[1759100881903,0.00704,112430.0,112420.0,1.32045925]
[1759100882127,0.00704,112430.0,112420.0,1.32545925]
[1759100882519,0.02359,112440.0,112430.0,0.17788846]
[1759100882759,0.00028,112440.0,112430.0,0.18095846]
[1759100882975,0.00028,112440.0,112430.0,0.84623036]
[1759100883237,0.02364,112450.0,112440.0,0.54802454]
[1759100883464,0.00186325,112460.0,112450.0,0.20800872]
[1759100883659,0.00186325,112460.0,112450.0,0.96255872]
[1759100883898,0.00186325,112460.0,112450.0,0.23679872]
[1759100884107,0.00186325,112460.0,112450.0,0.52279872]
[1759100884310,0.00186325,112460.0,112450.0,1.07061848]
[1759100884570,0.00186325,112460.0,112450.0,1.40732395]
[1759100884780,0.01713562,112470.0,112460.0,0.17784101]
[1759100884994,0.01713562,112470.0,112460.0,0.46691101]
[1759100885202,0.01713562,112470.0,112460.0,0.95603101]
[1759100885618,0.01713562,112470.0,112460.0,0.23678291]
[1759100885837,0.01713562,112470.0,112460.0,0.98618291]
[1759100886040,0.01713562,112470.0,112460.0,1.23446291]
[1759100886251,0.01713562,112470.0,112460.0,0.71816838]
[1759100886696,0.00409,112490.0,112480.0,0.54796128]
[1759100886914,4e-05,112490.0,112480.0,1.38666675]
[1759100887146,4e-05,112490.0,112480.0,1.78613675]
[1759100887393,0.53531712,112500.0,112490.0,0.30794548]
[1759100887600,0.14356501,112500.0,112490.0,0.40248095]
[1759100887803,0.01765497,112510.0,112500.0,0.30792967]
[1759100888008,0.14050681,112550.0,112540.0,0.17771459]
[1759100888213,0.15094393,112550.0,112540.0,0.58646649]
[1759100888437,0.14561393,112550.0,112540.0,0.23358649]
[1759100888653,0.13729681,112550.0,112540.0,0.23405165]
[1759100888867,0.13729681,112550.0,112540.0,0.23712165]
[1759100889072,0.13729681,112550.0,112540.0,0.98636165]
[1759100889245,0.13729681,112550.0,112540.0,0.23712165]
[1759100889450,0.13729681,112550.0,112540.0,0.98632165]
[1759100889711,0.13729681,112550.0,112540.0,0.23712165]
[1759100889911,0.13729681,112550.0,112540.0,0.23812165]
[1759100890124,0.13729681,112550.0,112540.0,0.98628165]
[1759100890348,0.13729681,112550.0,112540.0,0.30740539]
[1759100890978,0.13729681,112550.0,112540.0,1.76708539]
[1759100891180,0.13729681,112550.0,112540.0,1.67444539]
[1759100891417,0.13729681,112550.0,112540.0,1.77008539]
[1759100891629,0.13729681,112550.0,112540.0,1.85947086]
[1759100891777,0.13729681,112550.0,112540.0,1.85943086]
[1759100891986,0.13729681,112550.0,112540.0,0.73979086]
[1759100892190,0.13729681,112550.0,112540.0,1.90943086]
[1759100892426,0.13729681,112550.0,112540.0,1.90627086]
[1759100892427,1e-08,112550.0,112540.0,1.90627086]
[1759100892612,1e-08,112550.0,112540.0,1.95327086]
[1759100893018,1e-08,112550.0,112540.0,1.49515086]
[1759100893263,1e-08,112550.0,112540.0,1.07222349]
[1759100893264,0.00517001,112550.0,112540.0,1.07222349]
[1759100893517,0.00517001,112550.0,112540.0,1.01806349]
[1759100893694,0.00517001,112550.0,112540.0,0.27510349]
[1759100893914,0.00517001,112550.0,112540.0,0.96273975]
[1759100894157,0.00517001,112550.0,112540.0,0.21381975]
[1759100894587,0.00517001,112550.0,112540.0,0.96281975]
[1759100894900,0.00210001,112550.0,112540.0,0.24000165]
[1759100895104,0.00517001,112550.0,112540.0,0.98097165]
[1759100895305,0.00517001,112550.0,112540.0,0.98413165]
[1759100895506,0.00517001,112550.0,112540.0,0.98913165]
[1759100895707,0.00517001,112550.0,112540.0,0.98413165]
[1759100896083,0.00417001,112550.0,112540.0,0.95689975]
[1759100896282,0.00417001,112550.0,112540.0,0.52397165]
[1759100896544,0.00417001,112550.0,112540.0,0.98705165]
[1759100896672,0.00417001,112550.0,112540.0,0.23797165]
[1759100896873,0.00417001,112550.0,112540.0,0.98701165]
[1759100897543,0.00417001,112550.0,112540.0,0.98693165]
[1759100898124,0.00417001,112550.0,112540.0,0.23797165]
[1759100898327,0.00417001,112550.0,112540.0,0.20781975]
[1759100898534,0.00417001,112550.0,112540.0,0.95669975]
[1759100899139,0.00417001,112550.0,112540.0,0.49361975]
[1759100899337,0.00417001,112550.0,112540.0,0.49057975]
[1759100899541,0.00417001,112550.0,112540.0,0.95357975]
[1759100899744,0.00417001,112550.0,112540.0,0.95457975]
[1759100900184,0.00417001,112550.0,112540.0,0.86197975]
[1759100900364,0.00417001,112550.0,112540.0,0.95157975]
[1759100900533,0.00417001,112550.0,112540.0,0.95257975]
[1759100900982,0.00417001,112550.0,112540.0,0.48957975]
[1759100901189,0.00417001,112550.0,112540.0,0.58217975]
[1759100901565,0.00417001,112550.0,112540.0,0.48957975]
[1759100901762,0.00417001,112550.0,112540.0,0.95257975]
[1759100901934,0.00417001,112550.0,112540.0,0.20381975]
[1759100902136,0.00417001,112550.0,112540.0,0.95257975]
[1759100902540,0.00417001,112550.0,112540.0,0.20381975]
[1759100902751,0.00417001,112550.0,112540.0,0.02610516]
[1759100902752,0.88420864,112550.0,112540.0,0.02610516]
[1759100902995,0.97292011,112550.0,112540.0,0.08254516]
[1759100903220,0.99965475,112550.0,112540.0,0.08254516]
[1759100903655,0.91094328,112550.0,112540.0,0.08154516]
[1759100904358,0.92488315,112550.0,112540.0,0.08154516]
[1759100904558,0.91094328,112550.0,112540.0,0.08054516]
[1759100904789,0.54860345,112550.0,112540.0,0.08054516]
[1759100905604,0.00417001,112550.0,112540.0,0.08054516]
[1759100905921,0.00417001,112550.0,112540.0,0.25825975]
[1759100908111,0.01724908,112560.0,112550.0,0.1776988]
[1759100908353,0.01429908,112560.0,112550.0,0.1776988]
[1759100908554,0.01624908,112560.0,112550.0,0.2020888]
[1759100908762,0.01624908,112560.0,112550.0,0.6046807]
[1759100908975,0.01614908,112560.0,112550.0,0.6046807]
[1759100909983,0.01714908,112560.0,112550.0,0.6046807]
[1759100910396,0.01909908,112560.0,112550.0,0.5724888]
[1759100910625,0.02009908,112560.0,112550.0,0.5724888]
[1759100912052,0.02009908,112560.0,112550.0,0.5624888]
[1759100912256,0.01519908,112560.0,112550.0,0.5645288]
[1759100912540,0.01519908,112560.0,112550.0,0.5677388]
[1759100912713,0.01519908,112560.0,112550.0,0.5978907]
[1759100913533,0.01419908,112560.0,112550.0,0.5978907]
[1759100915824,0.01419908,112560.0,112550.0,0.9378907]
[1759100916051,0.01419908,112560.0,112550.0,0.96433511]
[1759100916491,0.00029423,112570.0,112560.0,0.17768301]
[1759100916715,0.00029423,112570.0,112560.0,0.55652301]
[1759100916922,0.00029423,112570.0,112560.0,0.58616301]
[1759100917355,0.00029423,112570.0,112560.0,0.61631491]
[1759100917999,0.00029423,112570.0,112560.0,0.61931491]
[1759100918201,0.00029423,112570.0,112560.0,0.61431491]
[1759100918664,0.35421521,112620.0,112610.0,0.17760412]
[1759100918890,0.37165066,112620.0,112610.0,0.55644412]
[1759100919128,0.37165066,112620.0,112610.0,0.58083412]
[1759100919562,0.02970066,112620.0,112610.0,0.58287412]
[1759100919777,0.01743545,112620.0,112610.0,0.02439]
[1759100919993,0.01843545,112620.0,112610.0,0.31109516]
[1759100920245,0.01843545,112620.0,112610.0,0.02485516]
[1759100920466,0.1960238,112620.0,112610.0,0.31113516]
[1759100920684,0.5379738,112620.0,112610.0,0.31117516]
[1759100920902,0.5389738,112620.0,112610.0,0.40373516]
[1759100921120,0.5389738,112620.0,112610.0,0.31129516]
[1759100921609,0.90147328,112620.0,112610.0,0.31129516]
[1759100922036,0.90147328,112620.0,112570.0,0.09256]
[1759100922037,0.51765144,112580.0,112570.0,0.09256]
[1759100922244,0.88505092,112580.0,112570.0,0.38066603]
[1759100922858,0.91177818,112580.0,112570.0,0.39710645]
[1759100923199,0.5492787,112580.0,112570.0,0.39710645]
[1759100923808,0.37162726,112580.0,112570.0,0.30450645]
[1759100924010,0.34195,112580.0,112570.0,0.48217367]
[1759100924236,0.38688948,112590.0,112580.0,0.17765144]
[1759100924237,0.36734,112590.0,112580.0,0.17765144]
[1759100924449,0.37162314,112590.0,112580.0,0.19409186]
[1759100924698,0.3449,112590.0,112580.0,0.04083042]
[1759100925560,0.52253566,112590.0,112580.0,0.04083042]
[1759100925766,0.52953566,112590.0,112580.0,0.04083042]
[1759100926190,0.34895,112590.0,112580.0,0.22052186]
[1759100926410,0.36288453,112590.0,112580.0,0.22052186]
[1759100926611,0.02288453,112590.0,112580.0,0.22052186]
[1759100926822,0.00895,112590.0,112580.0,0.22052186]
[1759100927177,0.0079,112590.0,112580.0,0.04083042]
[1759100927523,0.52253566,112590.0,112580.0,0.04083042]
[1759100927673,0.43361147,112590.0,112580.0,0.59864186]
[1759100928088,0.61124713,112590.0,112580.0,0.42099042]
[1759100928292,0.43361147,112590.0,112580.0,0.42099042]
[1759100928497,0.3449,112590.0,112580.0,0.42099042]
[1759100929286,0.52753566,112590.0,112580.0,0.42099042]
[1759100929490,0.34695,112590.0,112580.0,0.60068186]
[1759100929728,0.34695,112590.0,112580.0,0.42303042]
[1759100929996,0.34695,112590.0,112580.0,0.60068186]
[1759100930200,0.34695,112590.0,112580.0,0.60062054]
[1759100931134,0.005,112590.0,112580.0,0.60062054]
[1759100931323,0.005,112590.0,112580.0,0.60360054]
[1759100932128,0.005,112590.0,112580.0,0.97375244]
[1759100932913,0.02439,112600.0,112590.0,0.17763566]
[1759100933143,0.02703199,112620.0,112610.0,0.17760412]
[1759100933346,0.02910199,112620.0,112610.0,0.57646322]
[1759100933549,0.02910199,112620.0,112610.0,0.59968322]
[1759100934046,0.02399199,112620.0,112610.0,0.60166322]
[1759100934331,0.02860487,112620.0,112610.0,0.60014925]
[1759100934492,0.02860487,112620.0,112610.0,0.60014903]
[1759100935324,0.36860487,112620.0,112610.0,0.60014903]
[1759100935700,0.36556487,112620.0,112610.0,0.60012903]
[1759100936291,0.36556487,112620.0,112610.0,0.59814903]
[1759100936486,0.36860487,112620.0,112610.0,0.42238491]
[1759100936727,0.61814644,112620.0,112610.0,0.04006491]
[1759100936937,0.61814644,112620.0,112610.0,0.32970491]
[1759100937152,0.61814644,112620.0,112610.0,0.04006491]
[1759100937372,0.61814644,112620.0,112610.0,0.26230491]
[1759100937607,0.98064592,112620.0,112610.0,0.24592603]
[1759100938056,0.98064592,112620.0,112610.0,0.02368603]
[1759100938470,0.98064592,112620.0,112610.0,0.08268603]
[1759100938671,0.98064592,112620.0,112610.0,0.02368603]
[1759100938869,0.98064592,112620.0,112610.0,0.22776603]
[1759100939309,9.3431454,112620.0,112610.0,0.02368603]
[1759100940321,8.98064592,112620.0,112610.0,0.02368603]
[1759100940808,8.9126927,112620.0,112610.0,0.02368603]
[1759100941003,0.02956487,112620.0,112610.0,0.02566603]
[1759100941175,0.02956487,112620.0,112610.0,0.20327015]
[1759100941502,0.02956487,112620.0,112610.0,0.21966031]
[1759100941704,0.02749487,112620.0,112610.0,0.21966031]
[1759100942040,0.36749487,112620.0,112610.0,0.22263979]
[1759100942253,0.61529931,112620.0,112610.0,0.04007567]
[1759100942452,0.61833931,112620.0,112610.0,0.31332603]
[1759100943208,0.61833931,112620.0,112610.0,0.02368603]
[1759100943441,8.61833931,112620.0,112610.0,0.02368603]
[1759100943835,8.98083879,112620.0,112610.0,0.02368603]
[1759100944438,8.99477115,112620.0,112610.0,0.02368603]
[1759100944787,8.98083879,112620.0,112610.0,0.02368603]
[1759100947558,9.34333827,112620.0,112610.0,0.02368603]
[1759100950730,9.34305287,112620.0,112610.0,0.02368603]
[1759100950942,9.26929609,112620.0,112610.0,0.02368603]
[1759100952108,9.28322898,112620.0,112610.0,0.02368603]
[1759100952312,9.35021136,112620.0,112610.0,0.02368603]
[1759100953292,9.33627847,112620.0,112610.0,0.02368603]
[1759100953509,9.33619847,112620.0,112610.0,0.02368603]
[1759100953710,9.04667847,112620.0,112610.0,0.02368603]
[1759100953923,9.33603847,112620.0,112610.0,0.02368603]
[1759100954479,9.04667847,112620.0,112610.0,0.02368603]
[1759100954879,9.20087,112620.0,112610.0,0.02368603]
[1759100955142,8.91155,112620.0,112610.0,0.02368603]
[1759100955351,8.91155,112620.0,112610.0,0.02578603]
[1759100955352,8.54615322,112620.0,112610.0,0.02578603]
[1759100955749,0.54408322,112620.0,112610.0,0.02874603]
[1759100956352,0.20408322,112620.0,112610.0,0.02874603]
[1759100956573,0.02649487,112620.0,112610.0,0.49727015]
[1759100956733,0.36649487,112620.0,112610.0,0.49727015]
[1759100957303,0.36649487,112620.0,112610.0,0.31966603]
[1759100957510,0.36649487,112620.0,112610.0,0.49727015]
[1759100957751,0.54408322,112620.0,112610.0,0.31966603]
[1759100957951,0.54408322,112620.0,112610.0,0.31958603]
[1759100958157,0.54408322,112620.0,112610.0,0.02874603]
[1759100958368,0.54408322,112620.0,112610.0,0.31954603]
[1759100959811,0.36649487,112620.0,112610.0,0.49715015]
[1759100960924,0.54408322,112620.0,112610.0,0.31954603]
[1759100961731,0.62958414,112620.0,112610.0,0.41202603]
[1759100962156,0.62958414,112620.0,112610.0,0.31646603]
[1759100962157,0.54613322,112620.0,112610.0,0.31646603]
[1759100962375,0.54613322,112620.0,112610.0,0.31436603]
[1759100962579,0.54921322,112620.0,112610.0,0.31436603]
[1759100962955,0.54513322,112620.0,112610.0,0.02581603]
[1759100963106,0.54513322,112620.0,112610.0,0.31649603]
[1759100963306,0.54513322,112620.0,112610.0,0.31645603]
[1759100965034,0.55701413,112620.0,112610.0,0.31645603]
[1759100965244,0.55906413,112620.0,112610.0,0.31645603]
[1759100965898,0.54513322,112620.0,112610.0,0.31645603]
[1759100966829,0.36549487,112620.0,112610.0,0.31432603]
[1759100967044,0.36549487,112620.0,112610.0,0.49725015]
[1759100969588,0.61277536,112620.0,112610.0,0.02900603]
[1759100969789,0.61585536,112620.0,112610.0,0.40644603]
[1759100969988,0.61277536,112620.0,112610.0,0.40857603]
[1759100970580,0.54413322,112620.0,112610.0,0.40857603]
[1759100970800,0.54413322,112620.0,112610.0,0.58618015]
[1759100971140,0.54413322,112620.0,112610.0,0.40857603]
[1759100971317,0.54423609,112620.0,112610.0,0.40857603]
[1759100972379,0.54423609,112620.0,112610.0,0.02368603]
[1759100972582,0.54731609,112620.0,112610.0,0.40632603]
[1759100972787,0.54423609,112620.0,112610.0,0.40845603]
[1759100973024,0.63294756,112620.0,112610.0,0.02581603]
[1759100973226,0.63602756,112620.0,112610.0,0.31356603]
[1759100973931,0.54423609,112620.0,112610.0,0.31569603]
[1759100974092,0.54423609,112620.0,112610.0,0.31356603]
[1759100974295,0.54731609,112620.0,112610.0,0.31356603]
[1759100975095,0.54731609,112620.0,112610.0,0.02368603]
[1759100975290,0.54731609,112620.0,112610.0,0.31352603]
[1759100975523,0.54631609,112620.0,112610.0,0.31352603]
[1759100975913,0.54631609,112620.0,112610.0,0.02368603]
[1759100976147,0.63502756,112620.0,112610.0,0.24220603]
[1759100976446,0.63502756,112620.0,112610.0,0.31448603]
[1759100976587,0.54631609,112620.0,112610.0,0.31448603]
[1759100977589,0.54631609,112620.0,112610.0,0.31432603]
[1759100977774,8.54631609,112620.0,112610.0,0.31432603]
[1759100978411,8.54631609,112620.0,112610.0,0.02368603]
[1759100978412,8.90852351,112620.0,112610.0,0.02368603]
[1759100978627,8.99723498,112620.0,112610.0,0.02368603]
[1759100980897,9.28775498,112620.0,112610.0,0.02368603]
[1759100981623,9.35542467,112620.0,112610.0,0.02368603]
[1759100982472,9.35498467,112620.0,112610.0,0.02368603]
[1759100985539,9.35474467,112620.0,112610.0,0.02368603]
[1759100987797,9.35458467,112620.0,112610.0,0.02368603]
[1759100989816,9.38130781,112620.0,112610.0,0.02368603]
[1759100990789,9.09162781,112620.0,112610.0,0.02368603]
[1759100990998,9.38102781,112620.0,112610.0,0.02368603]
[1759100991417,9.09162781,112620.0,112610.0,0.02368603]
[1759100991622,9.01874039,112620.0,112610.0,0.02368603]
[1759100994546,9.38094781,112620.0,112610.0,0.02368603]
[1759100996436,9.38094781,112620.0,112610.0,0.33368603]
[1759101000124,9.09162781,112620.0,112610.0,0.33368603]
[1759101000321,9.38034781,112620.0,112610.0,0.33368603]
[1759101001165,9.46049971,112620.0,112610.0,0.33368603]
[1759101001403,0.51763566,112590.0,112580.0,0.07593609]
[1759101001604,0.94937,112590.0,112580.0,0.07640271]
[1759101001727,8.96413,112590.0,112580.0,0.36686271]
[1759101002177,8.96413,112590.0,112580.0,0.29390662]
[1759101002515,8.96413,112590.0,112580.0,0.00546662]
[1759101002724,8.53239566,112590.0,112580.0,0.00746662]
[1759101003466,8.53239566,112590.0,112580.0,0.03218662]
[1759101005255,0.53239566,112590.0,112580.0,0.03218662]
[1759101005689,0.59764713,112590.0,112580.0,0.03018662]
[1759101006022,0.59864713,112590.0,112580.0,0.03018662]
[1759101006232,8.6925386,112590.0,112580.0,0.02518662]
[1759101006443,8.6915386,112590.0,112580.0,0.02518662]
[1759101007982,8.6945386,112590.0,112580.0,0.02518662]
[1759101009922,9.34510602,112590.0,112580.0,0.02518662]
[1759101010127,9.42525792,112590.0,112580.0,0.02518662]
[1759101010334,9.4519899,112590.0,112580.0,0.03518662]
[1759101011246,9.4519899,112590.0,112570.0,0.32151515]
[1759101011247,0.64780334,112580.0,112570.0,0.32151515]
[1759101011406,9.03037481,112580.0,112570.0,0.32198264]
[1759101011609,9.05513481,112580.0,112570.0,0.32198264]
[1759101012738,9.05713481,112580.0,112570.0,0.32198264]
[1759101013164,8.76845481,112580.0,112570.0,0.32198264]
[1759101013382,9.07099352,112580.0,112570.0,0.32198264]
[1759101014269,1.13858999,112570.0,112560.0,0.02363]
[1759101014482,0.1776988,112550.0,112540.0,0.36151609]
[1759101014695,8.54256537,112550.0,112540.0,0.36413446]
[1759101014902,8.56700537,112550.0,112540.0,0.36413446]
[1759101015128,8.2021388,112550.0,112540.0,0.07874446]
[1759101015360,8.56488537,112550.0,112540.0,0.00578837]
[1759101015586,0.2021388,112550.0,112540.0,0.00578837]
[1759101015804,0.1671388,112550.0,112540.0,0.00578837]
[1759101016027,0.20384381,112550.0,112540.0,0.01078837]
[1759101016250,0.20384381,112550.0,112540.0,0.03641837]
[1759101017305,0.26391441,112550.0,112540.0,0.03641837]
[1759101017715,0.20384381,112550.0,112540.0,0.03641837]
[1759101017912,0.22828381,112550.0,112540.0,0.03641837]
[1759101018638,0.59103038,112550.0,112540.0,0.03641837]
[1759101018855,8.93636038,112550.0,112540.0,0.02609837]
[1759101019074,8.93636038,112550.0,112540.0,0.02409837]
[1759101019263,9.02507185,112550.0,112540.0,0.03109837]
[1759101019801,9.02507185,112550.0,112540.0,0.03209837]
[1759101020622,9.05181311,112550.0,112540.0,0.03209837]
[1759101021043,0.51771459,112540.0,112530.0,0.3330303]
[1759101021244,9.34315453,112540.0,112530.0,0.33349926]
[1759101021425,9.36577453,112540.0,112530.0,0.33349926]
[1759101021637,9.07697453,112540.0,112530.0,0.33349926]
[1759101021839,9.39247835,112540.0,112530.0,0.33349926]
[1759101022088,0.51776197,112510.0,112500.0,0.34770545]
[1759101022291,8.95239875,112510.0,112500.0,0.34704529]
[1759101022591,8.90341658,112510.0,112500.0,0.35020529]
[1759101022791,0.54038197,112510.0,112500.0,0.35020529]
[1759101023198,0.36262,112510.0,112500.0,0.35020529]
[1759101023342,0.54038197,112510.0,112500.0,0.35220529]
[1759101024166,0.36262,112510.0,112500.0,0.35220529]
[1759101024731,0.36262,112510.0,112500.0,0.53198306]
[1759101024847,0.02262,112510.0,112500.0,0.52998306]
[1759101025055,0.02262,112510.0,112500.0,0.52798306]
[1759101025265,0.02362,112510.0,112500.0,0.52798306]
[1759101026688,0.02362,112510.0,112500.0,0.90938306]
[1759101026883,0.02362,112510.0,112500.0,0.35020529]
[1759101027104,0.02362,112510.0,112500.0,0.73156529]
[1759101027387,0.02362,112510.0,112500.0,0.90934306]
[1759101028609,0.02362,112510.0,112500.0,0.81654306]
[1759101028822,0.02362,112510.0,112500.0,0.90914306]
[1759101029023,0.02362,112510.0,112500.0,0.52798306]
[1759101029243,0.20138197,112510.0,112500.0,0.35020529]
[1759101029412,0.20138197,112510.0,112500.0,0.63872529]
[1759101030763,0.02362,112510.0,112500.0,0.81650306]
[1759101031118,0.20138197,112510.0,112500.0,0.63872529]